bitfinex/quotes_BTCUSD_20250826
["timestamp","ask_amount","ask_price","bid_price","bid_amount"]
[1756246050713,0.42342295,112020.0,112010.0,0.4447331]
[1756246050937,0.42342295,112020.0,112010.0,0.4446931]
[1756246051885,0.42342295,112020.0,112010.0,0.40543548]
[1756246053173,0.60196249,112020.0,112010.0,0.40547548]
[1756246054182,0.60196249,112020.0,112010.0,0.25123548]
[1756246054379,0.60196249,112020.0,112010.0,0.40547548]
[1756246056254,0.60196249,112020.0,112010.0,0.004]
[1756246056469,0.60196249,112020.0,112010.0,0.15824]
[1756246057620,0.60196249,112020.0,112010.0,0.15624]
[1756246057788,0.60196249,112020.0,112010.0,0.15724]
[1756246058207,0.60196249,112020.0,112010.0,0.15524]
[1756246058582,0.00553,112020.0,112010.0,0.33479548]
[1756246058798,0.42342295,112020.0,112010.0,0.33479548]
[1756246059445,0.00553,112020.0,112010.0,0.33688548]
[1756246060096,0.42342295,112020.0,112010.0,0.33475548]
[1756246060313,0.42342295,112020.0,112010.0,0.73475548]
[1756246060524,0.42342295,112020.0,112010.0,0.73479548]
[1756246060737,0.42342295,112020.0,112010.0,0.73375548]
[1756246060964,0.42342295,112020.0,112010.0,0.73575548]
[1756246061200,0.42342295,112020.0,112010.0,0.73475548]
[1756246061610,0.42342295,112020.0,112010.0,0.73675548]
[1756246062909,0.00553,112020.0,112010.0,0.73675548]
[1756246063114,0.42342295,112020.0,112010.0,0.73675548]
[1756246063320,0.42342295,112020.0,112010.0,0.33675548]
[1756246063740,0.42342295,112020.0,112010.0,0.73675548]
[1756246064164,0.00553,112020.0,112010.0,0.73675548]
[1756246064379,0.42342295,112020.0,112010.0,0.73675548]
[1756246064600,0.42342295,112020.0,112010.0,0.33675548]
[1756246065096,0.0002,112020.0,112010.0,0.33884548]
[1756246065295,0.00549,112020.0,112010.0,0.18255548]
[1756246065497,0.42338295,112020.0,112010.0,0.36360748]
[1756246066453,0.60192249,112020.0,112010.0,0.33675548]
[1756246066659,0.60192249,112020.0,112010.0,0.1582]
[1756246068786,0.42338295,112020.0,112010.0,0.1582]
[1756246069003,0.42338295,112020.0,112010.0,0.33675548]
[1756246070535,0.60192249,112020.0,112010.0,0.33675548]
[1756246071456,0.60192249,112020.0,112010.0,0.1562]
[1756246071686,0.60192249,112020.0,112010.0,0.33575548]
[1756246072716,0.60192249,112020.0,112010.0,0.33375548]
[1756246072918,0.60192249,112020.0,112010.0,0.33475548]
[1756246073632,0.60192249,112020.0,112010.0,0.18055548]
[1756246073836,0.60192249,112020.0,112010.0,0.002]
[1756246074050,0.60192249,112020.0,112010.0,0.33475548]
[1756246076041,0.42020295,112020.0,112010.0,0.33684548]
[1756246076458,0.41809295,112020.0,112010.0,0.33684548]
[1756246076870,0.42020295,112020.0,112010.0,0.33684548]
[1756246077075,0.41809295,112020.0,112010.0,0.33684548]
[1756246077675,0.41809295,112020.0,112010.0,0.36369748]
[1756246079124,0.42020295,112020.0,112010.0,0.36369748]
[1756246079332,0.42338295,112020.0,112010.0,0.36160748]
[1756246080442,0.60192249,112020.0,112010.0,0.20740748]
[1756246080648,0.42338295,112020.0,112010.0,0.33471548]
[1756246083145,0.21910687,112030.0,112010.0,0.33471548]
[1756246083380,0.21910687,112030.0,112010.0,0.002]
[1756246083381,2.84239149,112020.0,112010.0,0.002]
[1756246083645,0.18064954,112020.0,112010.0,0.15616]
[1756246083907,0.93854249,112020.0,112010.0,0.002]
[1756246084115,3.33655149,112020.0,112010.0,0.001]
[1756246084332,3.33655149,112020.0,112010.0,0.002]
[1756246084912,3.34492853,112020.0,112010.0,0.001]
[1756246085261,3.7834505,112020.0,112010.0,0.001]
[1756246085657,3.8103125,112020.0,112010.0,0.001]
[1756246085890,3.6561525,112020.0,112010.0,0.001]
[1756246086126,3.36555755,112020.0,112010.0,0.001]
[1756246086333,2.85394853,112020.0,112000.0,0.17861804]
[1756246086544,2.84029743,112010.0,112000.0,0.18179804]
[1756246086730,0.59644843,112010.0,112000.0,0.18179804]
[1756246086932,0.41789295,112010.0,112000.0,0.18388804]
[1756246087280,0.41789295,112020.0,112010.0,0.17855548]
[1756246087505,0.79847579,112030.0,112020.0,0.17853954]
[1756246087705,0.96458111,112030.0,112020.0,0.18062954]
[1756246087928,0.78605751,112030.0,112020.0,0.18376954]
[1756246088131,0.96458111,112030.0,112020.0,0.18376954]
[1756246088272,0.78605751,112030.0,112020.0,0.18376954]
[1756246088640,0.96658111,112030.0,112020.0,0.18376954]
[1756246089021,0.96658111,112030.0,112020.0,0.18062954]
[1756246089992,0.96658111,112030.0,112010.0,0.40453548]
[1756246090233,0.41789295,112020.0,112010.0,0.40453548]
[1756246090606,0.41789295,112020.0,112010.0,0.40662548]
[1756246090770,0.59643249,112020.0,112010.0,0.40662548]
[1756246090970,0.41789295,112020.0,112010.0,0.40662548]
[1756246091961,0.54668816,112030.0,112020.0,0.17853954]
[1756246092166,0.37016456,112030.0,112020.0,0.18376954]
[1756246092374,0.02816456,112030.0,112020.0,0.18376954]
[1756246092585,0.20668816,112030.0,112020.0,0.18376954]
[1756246092785,0.20868816,112030.0,112010.0,0.25037548]
[1756246093003,0.20868816,112030.0,112020.0,0.15412]
[1756246093004,0.21168816,112030.0,112020.0,0.15412]
[1756246093209,0.62958111,112030.0,112020.0,0.15412]
[1756246093418,0.62658111,112030.0,112020.0,0.15412]
[1756246093838,0.62658111,112030.0,112020.0,0.15512]
[1756246094045,0.62658111,112030.0,112020.0,0.33365954]
[1756246094251,0.62658111,112030.0,112020.0,0.17953954]
[1756246094432,0.62658111,112030.0,112020.0,0.15512]
[1756246094786,0.62658111,112030.0,112020.0,0.33365954]
[1756246094990,0.62658111,112030.0,112020.0,0.15512]
[1756246095241,0.62658111,112030.0,112020.0,0.33365954]
[1756246095446,0.44805751,112030.0,112020.0,0.33574954]
[1756246095892,0.44805751,112030.0,112020.0,0.33988954]
[1756246097299,0.44805751,112030.0,112020.0,0.18576954]
[1756246097547,0.96958111,112030.0,112020.0,0.002]
[1756246097759,0.96958111,112030.0,112020.0,0.15608]
[1756246098386,0.78805751,112030.0,112020.0,0.33670954]
[1756246098592,0.96658111,112030.0,112020.0,0.33670954]
[1756246098799,0.96658111,112030.0,112020.0,0.33461954]
[1756246099206,0.96658111,112030.0,112020.0,0.33670954]
[1756246099865,0.54868816,112030.0,112020.0,0.33670954]
[1756246100550,0.37016456,112030.0,112020.0,0.33670954]
[1756246100756,0.54868816,112030.0,112020.0,0.33670954]
[1756246101170,0.54868816,112030.0,112020.0,0.33461954]
[1756246102730,0.37016456,112030.0,112020.0,0.33461954]
[1756246103196,0.37016456,112030.0,112020.0,0.33670954]
[1756246103401,0.37016456,112030.0,112020.0,0.33984954]
[1756246103600,0.36816456,112030.0,112020.0,0.33984954]
[1756246104632,0.54868816,112030.0,112020.0,0.33670954]
[1756246104788,0.37016456,112030.0,112020.0,0.18262954]
[1756246104975,0.37016456,112030.0,112020.0,0.33670954]
[1756246105596,0.37016456,112030.0,112020.0,0.33984954]
[1756246106884,0.54868816,112030.0,112020.0,0.18576954]
[1756246107098,0.55168816,112030.0,112020.0,0.33461954]
[1756246107591,0.54868816,112030.0,112020.0,0.33461954]
[1756246107812,0.54868816,112030.0,112020.0,0.33984954]
[1756246108037,0.54868816,112030.0,112020.0,0.33461954]
[1756246108240,0.54868816,112030.0,112020.0,0.33457954]
[1756246109117,0.54868816,112030.0,112020.0,0.002]
[1756246109308,0.54868816,112030.0,112020.0,0.15604]
[1756246109724,0.54868816,112030.0,112020.0,0.002]
[1756246109924,0.54868816,112030.0,112020.0,0.15604]
[1756246111843,0.54868816,112030.0,112020.0,0.33457954]
[1756246112185,0.54868816,112030.0,112020.0,0.002]
[1756246112390,0.54868816,112030.0,112020.0,0.15604]
[1756246113936,0.54868816,112030.0,112020.0,0.33457954]
[1756246114449,0.54868816,112030.0,112020.0,0.15604]
[1756246117104,0.54868816,112030.0,112020.0,0.15504]
[1756246117504,0.54868816,112030.0,112020.0,0.001]
[1756246117646,0.54868816,112030.0,112020.0,0.15504]
[1756246118307,0.54868816,112030.0,112020.0,0.15404]
[1756246118516,0.54868816,112030.0,112020.0,0.15504]
[1756246119307,2.79563716,112030.0,112020.0,0.155]
[1756246119515,2.79563716,112030.0,112020.0,0.001]
[1756246119700,2.94963716,112030.0,112020.0,0.155]
[1756246121910,2.79563716,112030.0,112020.0,0.001]
[1756246122224,0.51853954,112020.0,112010.0,0.22268]
[1756246122453,0.51853954,112020.0,112010.0,0.154]
[1756246122454,2.76760854,112020.0,112010.0,0.154]
[1756246122657,0.52375954,112020.0,112010.0,0.154]
[1756246123772,0.52375954,112020.0,112010.0,0.155]
[1756246124727,0.52375954,112020.0,112010.0,0.001]
[1756246124944,0.52375954,112020.0,112010.0,0.155]
[1756246125162,0.52375954,112020.0,112010.0,0.001]
[1756246125374,2.76760854,112020.0,112010.0,0.001]
[1756246126025,2.93905756,112020.0,112010.0,0.001]
[1756246126659,0.17855548,112010.0,112000.0,4.751e-05]
[1756246126895,2.57950448,112010.0,112000.0,4.751e-05]
[1756246127100,2.58162448,112010.0,112000.0,4.751e-05]
[1756246128726,2.59559945,112010.0,112000.0,4.751e-05]
[1756246131387,2.95304847,112010.0,112000.0,4.751e-05]
[1756246131808,2.95300847,112010.0,112000.0,4.751e-05]
[1756246132227,2.79904847,112010.0,112000.0,4.751e-05]
[1756246132651,2.95300847,112010.0,112000.0,4.751e-05]
[1756246134993,2.79904847,112010.0,112000.0,4.751e-05]
[1756246135168,2.95300847,112010.0,112000.0,4.751e-05]
[1756246137063,2.95300847,112010.0,112000.0,0.40637893]
[1756246137064,0.01397497,112010.0,112000.0,0.40637893]
[1756246137254,0.02816456,112030.0,112020.0,0.17853954]
[1756246137458,0.02816456,112030.0,112020.0,0.40514426]
[1756246137657,0.02816456,112030.0,112020.0,0.41026426]
[1756246137887,0.36816456,112030.0,112020.0,0.41026426]
[1756246138095,0.54668816,112030.0,112020.0,0.41026426]
[1756246138297,0.36816456,112030.0,112020.0,0.41026426]
[1756246138715,0.02816456,112030.0,112020.0,0.41126426]
[1756246139138,0.02816456,112030.0,112020.0,0.41226426]
[1756246139553,0.20668816,112030.0,112020.0,0.25830426]
[1756246139762,0.20668816,112030.0,112020.0,0.00712]
[1756246139972,0.20668816,112030.0,112020.0,0.16108]
[1756246140182,0.20668816,112030.0,112020.0,0.33961954]
[1756246140395,0.02816456,112030.0,112020.0,0.33961954]
[1756246141093,0.20668816,112030.0,112020.0,0.33961954]
[1756246141524,2.79575716,112030.0,112020.0,0.002]
[1756246141741,2.94967716,112030.0,112020.0,0.002]
[1756246141926,2.96364984,112030.0,112020.0,0.002]
[1756246142169,2.98109886,112030.0,112020.0,0.002]
[1756246142508,2.98109886,112030.0,112020.0,0.001]
[1756246142721,2.82817886,112030.0,112020.0,0.001]
[1756246142926,2.97799886,112030.0,112020.0,0.001]
[1756246143150,2.82407886,112030.0,112020.0,0.001]
[1756246143533,0.17853954,112020.0,112010.0,0.00306]
[1756246143714,2.42238854,112020.0,112010.0,0.00306]
[1756246143926,0.17853954,112020.0,112010.0,0.00512]
[1756246144552,0.18065954,112020.0,112010.0,0.00206]
[1756246144976,0.51855548,112010.0,112000.0,4.751e-05]
[1756246145180,3.59925666,112010.0,112000.0,4.751e-05]
[1756246145396,3.18295057,112010.0,112000.0,0.00210751]
[1756246145590,0.93698157,112010.0,112000.0,0.00516751]
[1756246146226,0.51855548,112010.0,112000.0,0.00516751]
[1756246146433,0.93698157,112010.0,112000.0,0.00516751]
[1756246146635,0.93698157,112010.0,112000.0,0.00716751]
[1756246147394,0.93698157,112010.0,112000.0,0.00816751]
[1756246148472,0.75842609,112010.0,112000.0,0.18673893]
[1756246149099,0.51855548,112010.0,112000.0,0.18673893]
[1756246149305,0.93698157,112010.0,112000.0,0.18673893]
[1756246150458,0.93698157,112010.0,112000.0,0.00816751]
[1756246153648,0.93698157,112010.0,112000.0,0.16204751]
[1756246154221,0.93698157,112010.0,112000.0,0.34061893]
[1756246154914,0.93698157,112010.0,112000.0,0.16204751]
[1756246155120,0.93698157,112010.0,112000.0,0.00816751]
[1756246155331,0.93698157,112010.0,112000.0,0.16204751]
[1756246157384,0.93698157,112010.0,112000.0,0.34061893]
[1756246157806,0.75842609,112010.0,112000.0,0.34061893]
[1756246159075,0.93698157,112010.0,112000.0,0.18673893]
[1756246159327,0.93698157,112010.0,112000.0,0.34057893]
[1756246159544,0.75842609,112010.0,112000.0,0.34057893]
[1756246159852,0.17853954,112020.0,112010.0,0.17855548]
[1756246160018,0.51853954,112020.0,112000.0,0.33545893]
[1756246160265,0.51853954,112020.0,112010.0,0.00515]
[1756246160443,0.51853954,112020.0,112010.0,0.18370548]
[1756246161753,0.93696563,112020.0,112010.0,0.18370548]
[1756246162398,0.51853954,112020.0,112010.0,0.18370548]
[1756246163428,0.52049954,112020.0,112010.0,0.15895]
[1756246163686,0.93696563,112020.0,112010.0,0.15895]
[1756246164506,0.93892563,112020.0,112010.0,0.33750548]
[1756246164712,0.93696563,112020.0,112010.0,0.15895]
[1756246164914,0.93892563,112020.0,112010.0,0.15895]
[1756246166278,0.93892563,112020.0,112010.0,0.15585]
[1756246166911,0.93892563,112020.0,112010.0,0.15895]
[1756246168197,0.93892563,112020.0,112010.0,0.15585]
[1756246170708,0.17855548,112010.0,112000.0,0.00314751]
[1756246170915,0.59698157,112010.0,112000.0,0.15690751]
[1756246171132,0.59698157,112010.0,112000.0,0.15895751]
[1756246171431,0.59894157,112010.0,112000.0,0.15895751]
[1756246171641,0.59698157,112010.0,112000.0,0.15895751]
[1756246172075,0.59698157,112010.0,112000.0,0.15995751]
[1756246172288,0.59894157,112010.0,112000.0,0.00104751]
[1756246172505,0.94199157,112010.0,112000.0,0.15480751]
[1756246172995,0.93894157,112010.0,112000.0,0.15480751]
[1756246174777,0.52051548,112010.0,112000.0,0.15480751]
[1756246174976,0.93894157,112010.0,112000.0,0.15480751]
[1756246175459,0.94199157,112010.0,112000.0,0.15480751]
[1756246175686,0.52356548,112010.0,112000.0,0.15480751]
[1756246175932,0.93894157,112010.0,112000.0,0.15480751]
[1756246179416,0.93894157,112010.0,112000.0,0.00104751]
[1756246179628,0.94205157,112010.0,112000.0,0.15480751]
[1756246179833,0.94205157,112010.0,112000.0,0.15476751]
[1756246181337,0.52051548,112010.0,112000.0,0.15476751]
[1756246181559,0.93894157,112010.0,112000.0,0.15476751]
[1756246181969,0.95291531,112010.0,112000.0,0.15476751]
[1756246183398,0.95291531,112010.0,112000.0,0.00104751]
[1756246183399,3.6183004,112010.0,112000.0,0.00104751]
[1756246183614,3.78946942,112010.0,112000.0,0.00104751]
[1756246183833,0.51860332,111980.0,111970.0,0.06868]
[1756246184061,0.51860332,111980.0,111970.0,0.02559808]
[1756246184062,3.18087841,111980.0,111970.0,0.02559808]
[1756246184282,3.18300841,111980.0,111970.0,0.02559808]
[1756246184503,3.18611841,111980.0,111970.0,0.02559808]
[1756246184716,3.18611841,111980.0,111970.0,0.00047808]
[1756246185615,3.18711841,111980.0,111970.0,0.00047808]
[1756246186928,3.20109659,111980.0,111970.0,0.00047808]
[1756246188440,2.99166011,111980.0,111970.0,0.00047808]
[1756246188680,3.17026343,111980.0,111970.0,0.00047808]
[1756246189540,3.32402343,111980.0,111970.0,0.00047808]
[1756246192487,3.75989854,111980.0,111970.0,0.00047808]
[1756246192901,3.34147245,111980.0,111970.0,0.00047808]
[1756246194728,3.75989854,111980.0,111970.0,0.00047808]
[1756246195322,3.74592036,111980.0,111970.0,0.00047808]
[1756246195754,3.59116036,111980.0,111970.0,0.00047808]
[1756246195961,3.16962427,111980.0,111970.0,0.00047808]
[1756246196170,3.17062427,111980.0,111970.0,0.00553808]
[1756246196364,2.84400841,111980.0,111970.0,0.00553808]
[1756246196573,0.59902941,111980.0,111970.0,0.00553808]
[1756246196832,0.93902941,111980.0,111970.0,0.00553808]
[1756246197043,0.59902941,111980.0,111970.0,0.00553808]
[1756246197488,0.93802941,111980.0,111970.0,0.00553808]
[1756246197867,0.93702941,111980.0,111970.0,0.00553808]
[1756246198312,0.93702941,111980.0,111970.0,0.00653808]
[1756246200436,0.51860332,111980.0,111970.0,0.00653808]
[1756246200639,0.93702941,111980.0,111970.0,0.00653808]
[1756246200994,0.53258105,111980.0,111970.0,0.18515735]
[1756246201195,0.01397773,111980.0,111970.0,0.18515735]
[1756246201396,0.01397773,111980.0,111970.0,0.00653808]
[1756246201397,0.51860332,111980.0,111970.0,0.00653808]
[1756246201713,0.93702941,111980.0,111970.0,0.00653808]
[1756246201915,3.33987841,111980.0,111970.0,0.00147808]
[1756246202148,3.33987841,111980.0,111970.0,0.00047808]
[1756246202725,3.33987841,111980.0,111970.0,0.00247808]
[1756246202931,3.35385684,111980.0,111970.0,0.00247808]
[1756246203138,3.35385684,111980.0,111970.0,0.00347808]
[1756246203374,2.77856075,111980.0,111970.0,0.00347808]
[1756246203584,0.53258175,111980.0,111970.0,0.00753808]
[1756246203761,0.95100784,111980.0,111970.0,0.00753808]
[1756246203998,0.95100784,111980.0,111970.0,0.00553808]
[1756246204417,0.93702941,111980.0,111970.0,0.00553808]
[1756246205551,0.51860332,111980.0,111970.0,0.00553808]
[1756246205782,0.93702941,111980.0,111970.0,0.00553808]
[1756246207351,1.09606941,111980.0,111970.0,0.00047808]
[1756246207509,1.11004722,111980.0,111970.0,0.00047808]
[1756246207725,0.68850113,111980.0,111970.0,0.00245808]
[1756246208049,0.95100722,111980.0,111970.0,0.00545808]
[1756246208260,0.93702941,111980.0,111970.0,0.00545808]
[1756246208878,0.93918941,111980.0,111970.0,0.00545808]
[1756246210144,0.52076332,111980.0,111970.0,0.00545808]
[1756246210361,0.93702941,111980.0,111970.0,0.00545808]
[1756246210940,0.93918941,111980.0,111970.0,0.00047808]
[1756246211352,1.09606941,111980.0,111970.0,0.00047808]
[1756246211582,1.11004738,111980.0,111970.0,0.00047808]
[1756246212128,3.37317747,111980.0,111970.0,0.00047808]
[1756246216690,3.83012649,111980.0,111970.0,0.00047808]
[1756246217170,3.81614852,111980.0,111970.0,0.00047808]
[1756246217375,3.83012792,111980.0,111970.0,0.00047808]
[1756246218187,3.86263786,111980.0,111970.0,0.00047808]
[1756246218338,0.53606829,111970.0,111960.0,4e-05]
[1756246218550,3.78981056,111970.0,111960.0,8.755e-05]
[1756246218748,3.79509056,111970.0,111960.0,8.755e-05]
[1756246219526,2.81026191,111970.0,111960.0,0.00206755]
[1756246219732,3.384608,111970.0,111960.0,0.00506755]
[1756246219935,3.385608,111970.0,111960.0,0.00206755]
[1756246220541,3.386608,111970.0,111960.0,0.00206755]
[1756246220755,3.36699898,111970.0,111960.0,0.00506755]
[1756246220968,3.34771789,111970.0,111960.0,0.00506755]
[1756246221382,2.9292918,111970.0,111960.0,0.00506755]
[1756246221590,3.19295789,111970.0,111960.0,0.00506755]
[1756246221799,3.19195789,111970.0,111960.0,0.00506755]
[1756246222009,3.2001938,111970.0,111960.0,0.00506755]
[1756246222446,2.78176771,111970.0,111960.0,0.00506755]
[1756246222650,3.2001938,111970.0,111960.0,0.00506755]
[1756246223071,0.53791871,111970.0,111960.0,0.00506755]
[1756246223289,0.9563448,111970.0,111960.0,0.00506755]
[1756246223499,0.96762592,111970.0,111960.0,0.00506755]
[1756246225217,0.94832648,111970.0,111960.0,0.00506755]
[1756246226134,0.52990039,111970.0,111960.0,0.00506755]
[1756246226361,0.52990039,111970.0,111960.0,0.33746277]
[1756246226562,0.52990039,111970.0,111960.0,0.15882755]
[1756246227178,0.34,111970.0,111960.0,0.33746277]
[1756246228415,0.34,111970.0,111960.0,0.34046277]
[1756246228636,0.51861927,111970.0,111960.0,0.34046277]
[1756246246820,0.34,111970.0,111960.0,0.34046277]
[1756246247022,0.51861927,111970.0,111960.0,0.34046277]
[1756246249648,0.52075927,111970.0,111960.0,0.18670277]
[1756246249875,0.51861927,111970.0,111960.0,0.34042277]
[1756246251193,0.51861927,111970.0,111960.0,0.18670277]
[1756246251418,0.52075927,111970.0,111960.0,0.34042277]
[1756246254778,0.51861927,111970.0,111960.0,0.34042277]
[1756246256108,0.18753109,111990.0,111960.0,0.75884886]
[1756246256347,0.18753109,111990.0,111980.0,0.17860332]
[1756246256348,0.17858737,111990.0,111980.0,0.17860332]
[1756246256593,0.17858737,111990.0,111970.0,0.60003101]
[1756246256819,0.51858737,111990.0,111980.0,0.15372]
[1756246257042,0.52072737,111990.0,111980.0,0.15372]
[1756246258763,0.51860332,111980.0,111970.0,0.19053588]
[1756246258964,0.51860332,111980.0,111970.0,0.34619588]
[1756246260112,0.34,111980.0,111970.0,0.34619588]
[1756246261520,0.34,111980.0,111970.0,0.76462197]
[1756246263171,0.34,111980.0,111970.0,0.61094197]
[1756246263392,0.34,111980.0,111970.0,0.76462197]
[1756246265028,0.34,111980.0,111970.0,1.16462197]
[1756246265281,0.02469856,112000.0,111970.0,1.16462197]
[1756246265509,0.17853954,112020.0,112000.0,0.17855697]
[1756246265740,0.17853954,112020.0,112000.0,0.6022152]
[1756246265741,0.34,112010.0,112000.0,0.6022152]
[1756246265968,0.34,112010.0,112000.0,0.75564306]
[1756246266402,0.22954307,112030.0,112010.0,0.17754255]
[1756246266616,0.56954307,112030.0,112020.0,0.15368]
[1756246266766,0.57002148,112030.0,112020.0,0.15268]
[1756246266978,0.57216148,112030.0,112020.0,0.15268]
[1756246267766,0.55825927,112030.0,112020.0,0.33121954]
[1756246267985,0.54930657,112030.0,112020.0,0.33121954]
[1756246268187,0.54930657,112030.0,112020.0,0.33626954]
[1756246268188,0.03078297,112030.0,112020.0,0.33626954]
[1756246268391,0.02864297,112030.0,112020.0,0.33626954]
[1756246268797,0.36864297,112030.0,112020.0,0.33626954]
[1756246269012,0.36864297,112030.0,112020.0,0.33722954]
[1756246269631,0.37065297,112030.0,112020.0,0.33722954]
[1756246269859,0.37065297,112030.0,112020.0,0.18358954]
[1756246270044,0.54917657,112030.0,112020.0,0.18358954]
[1756246270325,0.54917657,112030.0,112020.0,0.17953954]
[1756246270533,0.97070266,112030.0,112020.0,0.003]
[1756246270738,0.97070266,112030.0,112020.0,0.15664]
[1756246271154,0.97070266,112030.0,112020.0,0.003]
[1756246271355,0.97070266,112030.0,112020.0,0.15664]
[1756246272299,0.97070266,112030.0,112020.0,0.33517954]
[1756246272507,0.36864297,112030.0,112020.0,0.34022954]
[1756246272703,0.02864297,112030.0,112020.0,0.18658954]
[1756246272910,0.20716657,112030.0,112020.0,0.18658954]
[1756246273106,0.02864297,112030.0,112020.0,0.34022954]
[1756246273318,0.20917657,112030.0,112020.0,0.003]
[1756246273527,0.20917657,112030.0,112020.0,0.18053954]
[1756246273725,0.20917657,112030.0,112020.0,0.33213954]
[1756246274191,0.20917657,112030.0,112020.0,0.33413954]
[1756246274593,0.03065297,112030.0,112020.0,0.33918954]
[1756246274834,0.02864297,112030.0,112020.0,0.34018954]
[1756246275488,0.02864297,112030.0,112020.0,0.75861563]
[1756246276122,0.02864297,112030.0,112020.0,0.78546263]
[1756246277344,0.02864297,112030.0,112020.0,0.87692465]
[1756246277545,0.02864297,112030.0,112020.0,1.12692465]
[1756246277996,0.02864297,112030.0,112020.0,1.52692465]
[1756246278396,0.02864297,112030.0,112020.0,1.52592465]
[1756246278815,0.02864297,112030.0,112020.0,1.37632465]
[1756246279025,0.02864297,112030.0,112020.0,1.52988465]
[1756246279224,0.02864297,112030.0,112020.0,1.52788465]
[1756246279442,0.02864297,112030.0,112020.0,1.53388465]
[1756246279654,0.02864297,112030.0,112020.0,1.19242263]
[1756246279854,0.02864297,112030.0,112020.0,1.44242263]
[1756246280905,0.02864297,112030.0,112020.0,1.19242263]
[1756246281323,0.02864297,112030.0,112020.0,1.44242263]
[1756246281528,0.93857035,112060.0,112040.0,0.17850767]
[1756246281765,0.1836023,112050.0,112040.0,0.24723522]
[1756246281972,0.34,112060.0,112050.0,0.17849174]
[1756246282188,0.34,112060.0,112050.0,0.18577288]
[1756246282400,0.9389119,112060.0,112050.0,0.55356]
[1756246283108,0.52048581,112060.0,112050.0,0.73205174]
[1756246283328,0.76043609,112060.0,112050.0,0.73402174]
[1756246283560,0.9389119,112060.0,112050.0,0.57849174]
[1756246283789,0.52048581,112060.0,112050.0,0.73205174]
[1756246283997,0.9389119,112060.0,112050.0,0.73205174]
[1756246284216,0.9389119,112060.0,112050.0,0.55552]
[1756246284845,0.9389119,112060.0,112050.0,0.55652]
[1756246285258,0.9389119,112060.0,112050.0,0.73501174]
[1756246285438,0.9389119,112060.0,112050.0,0.33501174]
[1756246285702,0.9389119,112060.0,112050.0,0.15652]
[1756246285913,0.9389119,112060.0,112050.0,0.55652]
[1756246286302,0.9389119,112060.0,112050.0,0.73501174]
[1756246287096,0.9389119,112060.0,112050.0,0.55652]
[1756246287311,0.9389119,112060.0,112050.0,0.403]
[1756246287549,0.94723993,112060.0,112050.0,0.73501174]
[1756246288793,0.94723993,112060.0,112050.0,0.33501174]
[1756246289207,0.52881384,112060.0,112050.0,0.34006174]
[1756246289413,0.94723993,112060.0,112050.0,0.73501174]
[1756246289623,0.94723993,112060.0,112050.0,0.58149174]
[1756246289827,0.94723993,112060.0,112050.0,0.73497174]
[1756246290144,0.94723993,112060.0,112050.0,0.73694174]
[1756246290350,0.94723993,112060.0,112050.0,0.73497174]
[1756246290598,0.94723993,112060.0,112050.0,0.58149174]
[1756246290753,0.94723993,112060.0,112050.0,0.73497174]
[1756246290943,0.94723993,112060.0,112050.0,0.73694174]
[1756246291143,0.94723993,112060.0,112050.0,0.73497174]
[1756246291648,0.96644592,112060.0,112050.0,0.73497174]
[1756246292493,0.96644592,112060.0,112050.0,0.33497174]
[1756246292885,0.96644592,112060.0,112050.0,0.73497174]
[1756246293985,0.02753402,112060.0,112050.0,0.81266646]
[1756246294208,0.00832803,112060.0,112050.0,0.68602746]
[1756246294417,0.00832803,112060.0,112050.0,0.83950746]
[1756246294835,0.95416735,112070.0,112060.0,0.17847581]
[1756246295090,0.95416735,112070.0,112060.0,0.18070675]
[1756246295295,0.95617735,112070.0,112060.0,0.18575675]
[1756246295476,0.95617735,112070.0,112060.0,0.18352581]
[1756246295635,0.77771721,112070.0,112060.0,0.18352581]
[1756246296044,0.9561771,112070.0,112060.0,0.18352581]
[1756246296218,0.9561771,112070.0,112060.0,0.18044581]
[1756246296424,0.9561771,112070.0,112060.0,0.18267675]
[1756246297051,0.9561771,112070.0,112060.0,0.18367675]
[1756246297254,0.9561771,112070.0,112060.0,0.17947581]
[1756246297455,0.9561771,112070.0,112060.0,0.18583675]
[1756246297657,0.9561771,112070.0,112060.0,0.18360581]
[1756246298117,0.35929112,112070.0,112060.0,0.18660581]
[1756246298352,0.77771721,112070.0,112060.0,0.18660581]
[1756246301429,0.9561771,112070.0,112060.0,0.18660581]
[1756246302486,0.9561771,112070.0,112060.0,0.18360581]
[1756246303025,0.97840499,112070.0,112060.0,0.003]
[1756246303256,3.24909999,112070.0,112060.0,0.15644]
[1756246303505,3.26306706,112070.0,112060.0,0.15644]
[1756246303732,3.26306706,112070.0,112060.0,0.15544]
[1756246303906,3.26306706,112070.0,112060.0,0.15344]
[1756246304135,3.24909999,112070.0,112060.0,0.15544]
[1756246304395,3.25745162,112070.0,112060.0,0.15544]
[1756246304609,3.24909999,112070.0,112060.0,0.15544]
[1756246304833,0.97339499,112070.0,112060.0,0.40768581]
[1756246305004,0.9541671,112070.0,112060.0,0.40768581]
[1756246305204,0.77570721,112070.0,112060.0,0.40768581]
[1756246305617,0.9541671,112070.0,112060.0,0.40768581]
[1756246306228,0.77570721,112070.0,112060.0,0.40768581]
[1756246306435,0.77570721,112070.0,112060.0,0.40668581]
[1756246306642,0.77570721,112070.0,112060.0,0.40868581]
[1756246306984,0.77570721,112070.0,112060.0,0.40768581]
[1756246307162,0.9541671,112070.0,112060.0,0.40768581]
[1756246307367,0.9541671,112070.0,112060.0,0.25524581]
[1756246307578,0.9561471,112070.0,112060.0,0.07677]
[1756246307786,0.97539145,112070.0,112060.0,0.22508]
[1756246310193,0.9561471,112070.0,112060.0,0.07164]
[1756246310400,0.9561471,112070.0,112060.0,0.22508]
[1756246311386,0.9561471,112070.0,112060.0,0.07164]
[1756246311593,0.9561471,112070.0,112060.0,0.22508]
[1756246311999,0.9561471,112070.0,112060.0,0.22504]
[1756246314619,0.9591471,112070.0,112060.0,0.22504]
[1756246315356,0.9561471,112070.0,112060.0,0.22504]
[1756246320154,0.9561471,112070.0,112060.0,0.07164]
[1756246320361,0.9591471,112070.0,112060.0,0.22504]
[1756246320657,0.9859931,112070.0,112060.0,0.22504]
[1756246321245,3.2298421,112070.0,112060.0,0.1554]
[1756246321450,3.2298421,112070.0,112060.0,0.15536]
[1756246321714,3.2298421,112070.0,112060.0,0.002]
[1756246321886,3.2298421,112070.0,112060.0,0.15536]
[1756246322317,3.2298421,112070.0,112060.0,0.15336]
[1756246323090,0.51849174,112050.0,112040.0,0.06868755]
[1756246323237,0.93691783,112050.0,112040.0,0.22204755]
[1756246323494,0.93889783,112050.0,112040.0,0.22204755]
[1756246324135,0.93889783,112050.0,112040.0,0.22504755]
[1756246325633,0.94189783,112050.0,112040.0,0.22504755]
[1756246325834,1.38717292,112050.0,112040.0,0.22504755]
[1756246326244,0.96874683,112050.0,112040.0,0.22504755]
[1756246326660,1.38717292,112050.0,112040.0,0.22504755]
[1756246326862,0.96874683,112050.0,112040.0,0.22504755]